{"text_format":"3","workbook":"xlsx","n_sheets":1,"sheets":["Лист1"],"not_rendered":{"defined_names":1},"read":"whole","date_system":"1900"}

{"sheet":"Лист1","index":0,"n_rows":113,"n_cols":5,"rows_kept":113,"merged":[[0,3,0,4],[1,1,1,4],[3,1,4,1],[3,2,4,2],[3,3,3,4],[6,1,11,1],[13,1,21,1],[22,1,25,1],[26,1,28,1],[29,1,32,1],[33,1,35,1],[36,1,38,1],[39,1,42,1],[43,1,45,1],[46,1,48,1],[49,1,51,1],[52,1,54,1],[55,1,57,1],[58,1,61,1],[62,1,64,1],[65,1,67,1],[68,1,72,1],[73,1,75,1],[76,1,78,1],[79,1,81,1],[82,1,84,1],[85,1,87,1],[88,1,94,1],[95,1,97,1],[98,1,100,1],[101,1,103,1],[104,1,106,1],[107,1,109,1]]}
[{"$nulls":3},"Таблица 1  к Приложению 3"]
[null,"Информация об изменениях объемов финансирования и целевых показателей муниципальной программы города Усолье-Сибирское \"Охрана окружающей среды\" на 2019-2027 годы \nза  2025 год"]
[]
[null,"Наименование программы, подпрограммы,  основного мероприятия, мероприятия, проекта","Источники финансирования / Наименование целевого показателя","Предусмотренный объем финансирования (тыс. руб.) / Значение целевого показателя"]
[{"$nulls":3},"Редакция программы \nот 25.02.2025 № 320-па\n(на начало отчетного периода)","Редакция программы \nот 26.12.2025 № 2476-па\n(на конец отчетного периода)"]
[null,1,2,3,4]
[null,"Муниципальная программа города Усолье-Сибирское \"Охрана окружающей среды\" \nна 2019-2027 годы ","Всего",{"$f":"D8+D9","v":{"v":26099.17885,"d":"26,099.18"}},{"$f":"E8+E9","v":{"v":37398.41086999999,"d":"37,398.41"}}]
[null,null,"Бюджет города",{"$f":"D15+D60+D70+D90+D84","v":{"v":26099.17885,"d":"26,099.18"}},{"$f":"E15+E60+E70+E84+E90","v":{"v":37398.41086999999,"d":"37,398.41"}}]
[null,null,"Областной бюджет",{"$f":"D16","v":{"v":0,"d":"0.00"}},{"$f":"E16","v":{"v":0,"d":"0.00"}}]
[null,null,"Целевой показатель 1.                                                           Доля исполненных мероприятий по снижению уровня негативного воздействия на окружающую среду от запланированных (%).",100,100]
[null,null,"Целевой показатель 2.                                                           Доля исполненных мероприятий по развитию зеленого фонда города от запланированных (%).",100,100]
[null,null,"Целевой показатель 3.                                                          Доля исполненных мероприятий по защите объектов от наводнения и иного негативного воздействия вод и восстановление водных объектов до состояния, обеспечивающего экологически благоприятные условия жизни населения, от запланированных (%).",100,100]
[null,null,"Целевой показатель 4.                                                          Доля исполненных мероприятий по\nпредупреждению чрезвычайных ситуаций и обеспечению пожарной безопасности от запланированных (%).",100,100]
[null,"Подпрограмма № 1 \"Снижение экологической нагрузки на городскую среду города Усолье-Сибирское\" на 2019-2027 годы","Всего",{"$f":"D15+D16","v":{"v":14262.464880000001,"d":"14,262.46"}},{"$f":"E15+E16","v":{"v":25203.732470000003,"d":"25,203.73"}}]
[null,null,"Бюджет города",{"$f":"D24+D41+D48+D51+D54+D57","v":{"v":14262.464880000001,"d":"14,262.46"}},{"$f":"E24+E41+E48+E51+E54+E57","v":{"v":25203.732470000003,"d":"25,203.73"}}]
[null,null,"Областной бюджет",{"$f":"D25+D42","v":{"v":0,"d":"0.00"}},{"$f":"E25+E42","v":{"v":0,"d":"0.00"}}]
[null,null,"Целевой показатель 1. \nДоля исполненных мероприятий по уборке и улучшению санитарного состояния территории города Усолье-Сибирское, от запланированных (%)",100,100]
[null,null,"Целевой показатель 2. \nКоличество обслуживаемых мест (площадок) накопления твердых коммунальных отходов (ед.)",174,174]
[null,null,"Целевой показатель 3. \nКоличество отловленных животных без владельцев (шт.)",0,535]
[null,null,"Целевой показатель 6. \nДоля уничтоженных очагов произрастания дикорастущих наркосодержащих растений, от количества таких очагов, выявленных гражданами, полицией (%)",100,100]
[null,null,"Целевой показатель 11. \nКоличество проведенных лабораторных исследований на территории города Усолье-Сибирское (проб)",0,7]
[null,null,"Целевой показатель 12. Доля исполненных мероприятий по проектированию, восстановлению, содержанию полигона для размещения снежных масс, от запланированных (%)",100,100]
[null,"Основное мероприятие 1.1. \nУборка и улучшение санитарного состояния территории города Усолье-Сибирское  ","Всего",{"$f":"D24+D25","v":{"v":12815.313580000002,"d":"12,815.31"}},{"$f":"E24+E25","v":{"v":16057.62112,"d":"16,057.62"}}]
[null,null,"Бюджет города",{"$f":"D28+D31+D35","v":{"v":12815.313580000002,"d":"12,815.31"}},{"$f":"E28+E31+E35+E38","v":{"v":16057.62112,"d":"16,057.62"}}]
[null,null,"Областной бюджет",{"$f":"D32","v":{"v":0,"d":"0.00"}},{"$f":"E32","v":{"v":0,"d":"0.00"}}]
[null,null,"Целевой показатель 1. \nДоля исполненных мероприятий по уборке и улучшению санитарного состояния территории города Усолье-Сибирское, от запланированных (%)",100,100]
[null,"1.1.1. Уборка территории города Усолье-Сибирское в период месячника по санитарной очистке и общегородского субботника","Всего",{"$f":"D28","v":{"v":1468.48388,"d":"1,468.48"}},{"$f":"E28","v":{"v":4364.91726,"d":"4,364.92"}}]
[null,null,"Бюджет города",{"v":1468.48388,"d":"1,468.48"},{"v":4364.91726,"d":"4,364.92"}]
[null,null,"Значение целевого показателя относится к основному мероприятию  1.1. Уборка и улучшение санитарного состояния территории города Усолье – Сибирское","*","*"]
[null,"1.1.2. Сбор, транспортирование и утилизация (захоронение) твердых коммунальных отходов с несанкционированных мест размещения отходов","Всего",{"$f":"D31+D32","v":{"v":6822.38972,"d":"6,822.39"}},{"$f":"E31+E32","v":{"v":4169.1759,"d":"4,169.18"}}]
[null,null,"Бюджет города",{"v":6822.38972,"d":"6,822.39"},{"v":4169.1759,"d":"4,169.18"}]
[null,null,"Областной бюджет",{"v":0,"d":"0.00"},{"v":0,"d":"0.00"}]
[null,null,"Значение целевого показателя относится к основному мероприятию  1.1. Уборка и улучшение санитарного состояния территории города Усолье – Сибирское","*","*"]
[null,"1.1.3. Содержание городских кладбищ","Всего",{"$f":"D35","v":{"v":4524.43998,"d":"4,524.44"}},{"$f":"E35","v":{"v":7401.02796,"d":"7,401.03"}}]
[null,null,"Бюджет города",{"v":4524.43998,"d":"4,524.44"},{"v":7401.02796,"d":"7,401.03"}]
[null,null,"Значение целевого показателя относится к основному мероприятию  1.1. Уборка и улучшение санитарного состояния территории города Усолье – Сибирское","*","*"]
[null,"1.1.6. Подбор павших животных на территории города Усолье-Сибирское","Всего",{"$f":"D38","v":{"v":0,"d":"0.00"}},{"$f":"E38","v":{"v":122.5,"d":"122.50"}}]
[null,null,"Бюджет города",{"v":0,"d":"0.00"},{"v":122.5,"d":"122.50"}]
[null,null,"Значение целевого показателя относится к основному мероприятию  1.1. Уборка и улучшение санитарного состояния территории города Усолье – Сибирское","*","*"]
[null,"Основное мероприятие 1.2. \nСоздание и обслуживание мест (площадок) накопления твердых коммунальных отходов","Всего",{"$f":"D41+D42","v":{"v":0,"d":"0.00"}},{"$f":"E41+E42","v":{"v":6576.31277,"d":"6,576.31"}}]
[null,null,"Бюджет города",{"$f":"D45","v":{"v":0,"d":"0.00"}},{"$f":"E45","v":{"v":6576.31277,"d":"6,576.31"}}]
[null,null,"Областной бюджет",{"v":0,"d":"0.00"},{"v":0,"d":"0.00"}]
[null,null,"Целевой показатель 2. \nКоличество обслуживаемых мест (площадок) накопления твердых коммунальных отходов (ед.)",174,174]
[null,"1.2.2. Обслуживание мест (площадок) накопления твердых коммунальных отходов","Всего",{"$f":"D45","v":{"v":0,"d":"0.00"}},{"$f":"E45","v":{"v":6576.31277,"d":"6,576.31"}}]
[null,null,"Бюджет города",{"v":0,"d":"0.00"},{"v":6576.31277,"d":"6,576.31"}]
[null,null,"Значение целевого показателя относится к основному мероприятию  1.2. Создание и обслуживание мест (площадок) накопления твердых коммунальных отходов","*","*"]
[null,"Основное мероприятие 1.3.                                                      Мероприятия по отлову и содержанию животных без владельцев","Всего",{"$f":"D48","v":{"v":0,"d":"0.00"}},{"$f":"E48","v":{"v":900,"d":"900.00"}}]
[null,null,"Бюджет города",{"v":0,"d":"0.00"},{"v":900,"d":"900.00"}]
[null,null,"Целевой показатель 3. \nКоличество отловленных животных без владельцев (шт.)",0,535]
[null,"Основное мероприятие 1.4.                                                      Мероприятия по уничтожению дикорастущих наркосодержащих растений. ","Всего",{"$f":"D51","v":{"v":0,"d":"0.00"}},{"$f":"E51","v":{"v":200,"d":"200.00"}}]
[null,null,"Бюджет города",{"v":0,"d":"0.00"},{"v":200,"d":"200.00"}]
[null,null,"Целевой показатель 6. \nДоля уничтоженных очагов произрастания дикорастущих наркосодержащих растений, от количества таких очагов, выявленных гражданами, полицией  (%)",100,100]
[null,"Основное мероприятие 1.9. \nПроведение лабораторных исследований на территории города Усолье-Сибирское","Всего",{"$f":"D54","v":{"v":0,"d":"0.00"}},{"$f":"E54","v":212.97}]
[null,null,"Бюджет города",{"v":0,"d":"0.00"},212.97]
[null,null,"Целевой показатель 11. \nКоличество проведенных лабораторных исследований на территории города Усолье-Сибирское (проб)",0,7]
[null,"Основное мероприятие 1.11. Мероприятия по организации площадки для складирования отходов от зимней уборки на территории г. Усолье-Сибирское","Всего",{"$f":"D57","v":{"v":1447.1513,"d":"1,447.15"}},{"$f":"E57","v":{"v":1256.82858,"d":"1,256.83"}}]
[null,null,"Бюджет города",{"v":1447.1513,"d":"1,447.15"},{"v":1256.82858,"d":"1,256.83"}]
[null,null,"Целевой показатель 12. Доля исполненных мероприятий по проектированию, восстановлению, содержанию полигона для размещения снежных масс, от запланированных (%)",100,100]
[null,"Подпрограмма 2 \"Озеленение территории города и восстановление природных ресурсов\" на 2019-2027 годы","Всего",{"$f":"D60","v":{"v":6382.77478,"d":"6,382.77"}},{"$f":"E60","v":{"v":5709.97833,"d":"5,709.98"}}]
[null,null,"Бюджет города",{"$f":"D64+D67","v":{"v":6382.77478,"d":"6,382.77"}},{"$f":"E64+E67","v":{"v":5709.97833,"d":"5,709.98"}}]
[null,null,"Целевой показатель 1.                                                        Доля исполненных мероприятий по содержанию и озеленению объектов общего пользования, расположенных на территории города, от запланированных (%)",100,100]
[null,null,"Целевой показатель 2. Наличие лесоустроительной документации городских лесов (1 – наличие/ 0 – отсутствие) (ед.)",1,1]
[null,"Основное мероприятие 2.1 \nОзеленение территории города","Всего",{"$f":"D64","v":{"v":6382.77478,"d":"6,382.77"}},{"$f":"E64","v":{"v":5709.97833,"d":"5,709.98"}}]
[null,null,"Бюджет города",{"v":6382.77478,"d":"6,382.77"},{"v":5709.97833,"d":"5,709.98"}]
[null,null,"Целевой показатель 1.                                                        Доля исполненных мероприятий по содержанию и озеленению объектов общего пользования, расположенных на территории города, от запланированных (%)",100,100]
[null,"Основное мероприятие 2.2 Лесоустройство городских лесов","Всего",{"$f":"D67","v":{"v":0,"d":"0.00"}},{"$f":"E67","v":{"v":0,"d":"0.00"}}]
[null,null,"Бюджет города",{"v":0,"d":"0.00"},{"v":0,"d":"0.00"}]
[null,null,"Целевой показатель 2. Наличие лесоустроительной документации городских лесов (1 – наличие/ 0 – отсутствие) (ед.)",1,1]
[null,"Подпрограмма 3 \"Развитие водохозяйственного комплекса\" \nна 2019-2027 годы","Всего",{"$f":"D70","v":{"v":2255.48949,"d":"2,255.49"}},{"$f":"E70","v":{"v":4048.28932,"d":"4,048.29"}}]
[null,null,"Бюджет города",{"$f":"D75+D78","v":{"v":2255.48949,"d":"2,255.49"}},{"$f":"E75+E78","v":{"v":4048.28932,"d":"4,048.29"}}]
[null,null,"Целевой показатель 1. \nПротяженность очищенного русла рек Шелестиха, Скипидарка (км.)",2.2,2.2]
[null,null,"Целевой показатель 2.                                                           Количество водозаборных скважин, содержание которых выполнено (ед.)",4,4]
[null,null,"Целевой показатель 3. \nДоля населения, обеспеченного питьевой водой, отвечающей требованиям безопасности, в общей численности населения (%)",98,98]
[null,"Основное мероприятие 3.1.\nМероприятия по предотвращению разлива рек Шелестиха, Скипидарка","Всего",{"$f":"D75","v":{"v":552.82128,"d":"552.82"}},{"$f":"E75","v":{"v":1235.49917,"d":"1,235.50"}}]
[null,null,"Бюджет города",{"v":552.82128,"d":"552.82"},{"v":1235.49917,"d":"1,235.50"}]
[null,null,"Целевой показатель 1. Протяженность очищенного русла рек Шелестиха, Скипидарка (км.)",2.2,2.2]
[null,"Основное мероприятие 3.2.\nСодержание водозаборных скважин","Всего",{"$f":"D78","v":{"v":1702.66821,"d":"1,702.67"}},{"$f":"E78","v":{"v":2812.79015,"d":"2,812.79"}}]
[null,null,"Бюджет города",{"v":1702.66821,"d":"1,702.67"},{"v":2812.79015,"d":"2,812.79"}]
[null,null,"Целевой показатель 2.                                                           Количество водозаборных скважин, содержание которых выполнено (ед.)",4,4]
[null,"Основное мероприятие 3.3. \nПроектирование сетей водоснабжения города Усолье – Сибирское","Всего",{"$f":"D81","v":{"v":0,"d":"0.00"}},{"$f":"E81","v":{"v":0,"d":"0.00"}}]
[null,null,"Бюджет города",{"v":0,"d":"0.00"},{"v":0,"d":"0.00"}]
[null,null,"Целевой показатель 3. \nДоля населения, обеспеченного питьевой водой, отвечающей требованиям безопасности, в общей численности населения (%)",98,98]
[null,"Подпрограмма 4 \"Экологическое образование населения\" \nна 2019-2027 годы","Всего",{"$f":"D84","v":{"v":71.5,"d":"71.50"}},{"$f":"E84","v":{"v":79.2,"d":"79.20"}}]
[null,null,"Бюджет города",{"$f":"D87","v":{"v":71.5,"d":"71.50"}},{"$f":"E87","v":{"v":79.2,"d":"79.20"}}]
[null,null,"Целевой показатель 3. Количество изготовленных и установленных информационных щитов (баннеров, аншлагов) на территории города Усолье-Сибирское (шт.)",30,11]
[null,"Основное мероприятие 4.3.\nКоличество изготовленных и установленных информационных щитов (баннеров, аншлагов) на территории города Усолье-Сибирское","Всего",{"$f":"D87","v":{"v":71.5,"d":"71.50"}},{"$f":"E87","v":{"v":79.2,"d":"79.20"}}]
[null,null,"Бюджет города",{"v":71.5,"d":"71.50"},{"v":79.2,"d":"79.20"}]
[null,null,"Целевой показатель 3. Количество изготовленных и установленных информационных щитов (баннеров, аншлагов) на территории города Усолье-Сибирское (шт.)",30,11]
[null,"Подпрограмма № 5 \n\"Предотвращение чрезвычайных ситуаций и обеспечение пожарной безопасности\" на 2019-2027 годы","Всего",{"$f":"D90","v":{"v":3126.9497,"d":"3,126.95"}},{"$f":"E90","v":{"v":2357.2107499999997,"d":"2,357.21"}}]
[null,null,"Бюджет города",{"$f":"D97+D100+D103+D106+D109","v":{"v":3126.9497,"d":"3,126.95"}},{"$f":"E97+E100+E103+E106+E109","v":{"v":2357.2107499999997,"d":"2,357.21"}}]
[null,null,"Целевой показатель 1. \nПротяженность минерализованной полосы, подлежащей опашке и прочистке (км.)",18.5,35.26]
[null,null,"Целевой показатель 2.\nКоличество изготовленной информации по противопожарной пропаганде (шт).",{"v":5004,"d":"5,004"},{"v":6000,"d":"6,000"}]
[null,null,"Целевой показатель 3. \nДоля исполненных мероприятий по тушению лесных пожаров в границах города Усолье-Сибирское от запланированных (%)",0,100]
[null,null,"Целевой показатель 5. \nКоличество изготовленных и установленных информационных аншлагов (знаков) (шт.)",20,4]
[null,null,"Целевой показатель 7. \nПлощадь скошенной травянистой растительности (100 м2)",{"v":38500,"d":"38,500.00"},{"v":1226,"d":"1,226.00"}]
[null,"Основное мероприятие 5.1. \nУстройство и обновление противопожарных минерализованных полос на территории города Усолье-Сибирское","Всего",{"$f":"D97","v":{"v":1370.575,"d":"1,370.58"}},{"$f":"E97","v":{"v":1370.575,"d":"1,370.58"}}]
[null,null,"Бюджет города",{"v":1370.575,"d":"1,370.58"},{"v":1370.575,"d":"1,370.58"}]
[null,null,"Целевой показатель 1. \nПротяженность минерализованной полосы, подлежащей опашке и прочистке (км.)",18.5,35.26]
[null,"Основное мероприятие 5.2.\nПротивопожарная пропаганда (баннеры, листовки, календари, магниты)","Всего",{"$f":"D100","v":{"v":99.6,"d":"99.60"}},{"$f":"E100","v":97.84}]
[null,null,"Бюджет города",{"v":99.6,"d":"99.60"},97.84]
[null,null,"Целевой показатель 2. \nКоличество изготовленной информации по противопожарной пропаганде (шт).",{"$f":"D92","v":5004},6000]
[null,"Основное мероприятие  5.3. Организация тушения лесных пожаров на границах города Усолье-Сибирское","Всего",{"$f":"D103","v":{"v":101.785,"d":"101.79"}},{"$f":"E103","v":{"v":43.28171,"d":"43.28"}}]
[null,null,"Бюджет города",{"v":101.785,"d":"101.79"},{"v":43.28171,"d":"43.28"}]
[null,null,"Целевой показатель 3. \nДоля исполненных мероприятий по тушению лесных пожаров в границах города Усолье-Сибирское от запланированных (%)",{"$f":"D93","v":0},100]
[null,"Основное мероприятие  5.5. Мероприятия по обеспечению безопасности на водных объектах","Всего",{"$f":"D106","v":{"v":33,"d":"33.00"}},{"$f":"E106","v":{"v":35.1,"d":"35.10"}}]
[null,null,"Бюджет города",{"v":33,"d":"33.00"},{"v":35.1,"d":"35.10"}]
[null,null,"Целевой показатель 5. \nКоличество изготовленных и установленных информационных аншлагов (знаков) (шт.)",{"$f":"D94","v":20},4]
[null,"Основное мероприятие  5.6. Покос травянистой растительности","Всего",{"$f":"D109","v":{"v":1521.9897,"d":"1,521.99"}},{"$f":"E109","v":{"v":810.41404,"d":"810.41"}}]
[null,null,"Бюджет города",{"v":1521.9897,"d":"1,521.99"},{"v":810.41404,"d":"810.41"}]
[null,null,"Целевой показатель 7. \nПлощадь скошенной травянистой растительности (100 м2)",{"v":38500,"d":"38,500.00"},{"v":1226,"d":"1,226.00"}]
[]
[]
[null,"Мэр города Усолье-Сибирское",null,"М.В. Торопкин"]